[Event "World Junior U20 Girls 2018"]
[Site "Gebze"]
[Date "2018.09.07"]
[Round "3"]
[White "Dwilewicz, Katarzyna"]
[Black "Sliwicka, Alicja"]
[Result "0-1"]
[ECO "B31"]
[WhiteElo "2081"]
[BlackElo "2272"]
[Annotator "NA"]
[PlyCount "82"]
[EventDate "2018.09.05"]
[EventType "swiss"]
[EventCountry "TUR"]
[SourceTitle "playchess.com"]
[Source "ChessBase"]
[SourceQuality "1"]
[TimeControl "40/5400+30:1800+30"]

1. e4 {[%emt 0:00:30]} c5 {[%emt 0:00:30]} 2. Nf3 {[%emt 0:00:00]} Nc6 {[%emt 0:00:00]} 3. Bb5 {[%emt 0:01:00]} g6 {[%emt 0:02:00]} 4. O-O {[%emt 0:00:30]} Bg7 {[%emt 0:00:30]} 5. c3 {[%emt 0:02:30]} Nf6 {[%emt 0:03:30]} 6. Re1 {[%emt 0:02:30]} O-O {[%emt 0:00:30]} 7. d4 {[%emt 0:05:30]} Qb6 {[%emt 0:07:30]} 8. Bf1 {[%emt 0:04:30]} cxd4 {[%emt 0:07:30]} 9. cxd4 {[%emt 0:00:30]} d5 {[%emt 0:07:30]} 10. e5 $1 {[%emt 0:01:30]} Ne4 {[%emt 0:00:30]} 11. Nc3 {[%emt 0:03:30]} Nxc3 {[%emt 0:01:30]} 12. bxc3 {[%emt 0:00:30]} Na5 {[%emt 0:03:30]} 13. Ba3 {[%emt 0:03:30]} Qc7 {[%emt 0:00:30]} 14. Rb1 {[%emt 0:12:30]} Re8 {[%emt 0:07:30]} 15. Rb5 {[%emt 0:00:30]} b6 {[%emt 0:01:30]} 16. Rxd5 {[%emt 0:05:30]} Qxc3 $11 {[%emt 0:07:30]} 17. Re3 {[%emt 0:15:30]} Qc6 {[%emt 0:03:30]} 18. Rb5 {[%emt 0:00:30]} Nc4 {[%emt 0:00:30]} 19. Bxc4 {[%emt 0:00:30]} Qxc4 {[%emt 0:00:30]} 20. Rbb3 {[%emt 0:00:30]} Be6 {[%emt 0:05:30]} 21. Ng5 {[%emt 0:07:30]} Bd5 {[%emt 0:01:30]} 22. Rbc3 {[%emt 0:03:30]} Qa6 {[%emt 0:02:30]} 23. Rc7 {[%emt 0:00:30]} Bf8 {[%emt 0:05:30]} 24. Rec3 {[%emt 0:01:30]} Rac8 {[%emt 0:00:30]} 25. Bb4 {[%emt 0:05:30]} Rxc7 {[%emt 0:01:30]} 26. Rxc7 {[%emt 0:00:00]} Rc8 {[%emt 0:02:30]} 27. Rxc8 {[%emt 0:05:09]} Qxc8 {[%emt 0:00:30]} 28. h3 {[%emt 0:03:08]} a5 {[%emt 0:00:30]} 29. Ba3 {[%emt 0:01:59]} Qc4 {[%emt 0:01:30]} 30. e6 {[%emt 0:05:55]} f6 {[%emt 0:00:30]} 31. Nf3 {[%emt 0:01:00]} Bxe6 {[%emt 0:01:30]} 32. Qb1 {[%emt 0:00:55]} b5 {[%emt 0:01:30]} 33. Bc5 {[%emt 0:00:12]} b4 {[%emt 0:00:30]} 34. Qe4 {[%emt 0:04:02]} Qxa2 {[%emt 0:00:30]} 35. g4 {[%emt 0:01:28]} Bd5 {[%emt 0:01:30]} 36. Qf4 {[%emt 0:00:38]} Qb3 {[%emt 0:02:30]} 37. Kg2 {[%emt 0:00:48]} a4 {[%emt 0:00:30]} 38. g5 {[%emt 0:00:31]} fxg5 {[%emt 0:00:30]} 39. Qg4 {[%emt 0:00:36]} a3 {[%emt 0:00:30]} 40. Bxb4 {[%emt 0:00:00]} Qxb4 {[%emt 0:00:00]} 41. Qd7 {[%emt 0:02:39]} Qb7 {[%emt 0:01:00]} 0-1

[Event "World Junior U20 Girls 2018"]
[Site "Gebze"]
[Date "2018.09.07"]
[Round "3"]
[White "Sankova, Stella"]
[Black "Aksoy, Ayca"]
[Result "1-0"]
[ECO "C00"]
[WhiteElo "2081"]
[BlackElo "1898"]
[Annotator "NA"]
[PlyCount "103"]
[EventDate "2018.09.05"]
[EventType "swiss"]
[EventCountry "TUR"]
[SourceTitle "playchess.com"]
[Source "ChessBase"]
[SourceQuality "1"]
[TimeControl "40/5400+30:1800+30"]

1. e4 {[%emt 0:00:30]} c5 {[%emt 0:00:30]} 2. Nf3 {[%emt 0:00:00]} e6 {[%emt 0:01:30]} 3. g3 {[%emt 0:00:00]} Nc6 {[%emt 0:02:30]} 4. Bg2 {[%emt 0:00:00]} Be7 {[%emt 0:02:30]} 5. O-O {[%emt 0:00:00]} Nf6 {[%emt 0:01:30]} 6. Qe2 {[%emt 0:01:30]} d6 {[%emt 0:02:30]} 7. c3 {[%emt 0:00:30]} O-O {[%emt 0:01:30]} 8. d4 {[%emt 0:00:00]} e5 {[%emt 0:04:30]} 9. d5 {[%emt 0:08:00]} Nb8 {[%emt 0:01:30]} 10. Ne1 {[%emt 0:19:00]} Na6 {[%emt 0:41:00]} 11. h3 {[%emt 0:03:30]} Nc7 $16 {[%emt 0:00:30]} 12. a4 {[%emt 0:04:30]} Rb8 {[%emt 0:00:30]} 13. f4 {[%emt 0:13:30]} Nd7 {[%emt 0:02:30]} 14. Na3 {[%emt 0:03:30]} b6 {[%emt 0:04:30]} 15. Nf3 {[%emt 0:06:30]} exf4 {[%emt 0:08:30]} 16. Bxf4 {[%emt 0:03:30]} a6 {[%emt 0:03:30]} 17. b4 {[%emt 0:07:30]} b5 {[%emt 0:03:30]} 18. a5 {[%emt 0:00:30]} Bb7 {[%emt 0:10:30]} 19. g4 {[%emt 0:05:30]} Rc8 {[%emt 0:05:03]} 20. Nc2 {[%emt 0:01:30]} Re8 {[%emt 0:01:27]} 21. Qd3 {[%emt 0:05:30]} Bf8 {[%emt 0:04:53]} 22. Rae1 {[%emt 0:02:30]} Be7 {[%emt 0:03:46]} 23. Ne3 {[%emt 0:01:30]} g6 {[%emt 0:05:00]} 24. g5 {[%emt 0:06:10]} cxb4 {[%emt 0:02:28]} 25. cxb4 {[%emt 0:00:13]} f6 {[%emt 0:00:10]} 26. h4 {[%emt 0:02:07]} Ne5 {[%emt 0:00:51]} 27. Bxe5 {[%emt 0:04:27]} fxe5 {[%emt 0:00:09]} 28. Bh3 {[%emt 0:00:47]} Rb8 {[%emt 0:00:02]} 29. Ng4 {[%emt 0:02:08]} Rf8 {[%emt 0:02:00]} 30. Nfh2 {[%emt 0:01:07]} Bc8 {[%emt 0:00:51]} 31. Rxf8+ {[%emt 0:00:54]} Bxf8 {[%emt 0:00:10]} 32. Nf6+ {[%emt 0:03:03]} Kh8 {[%emt 0:00:59]} 33. Rf1 {[%emt 0:01:05]} Bg7 {[%emt 0:00:33]} 34. Bxc8 {[%emt 0:02:50]} Rxc8 {[%emt 0:00:13]} 35. h5 {[%emt 0:00:10]} gxh5 {[%emt 0:00:41]} 36. Qg3 {[%emt 0:00:47]} Qe7 {[%emt 0:01:15]} 37. Nxh5 {[%emt 0:00:57]} Rf8 {[%emt 0:01:15]} 38. Qg4 {[%emt 0:01:07]} Ne8 {[%emt 0:01:07]} 39. Ng3 {[%emt 0:01:08]} Qa7+ {[%emt 0:00:39]} 40. Kg2 {[%emt 0:00:00]} Qe3 {[%emt 0:00:00]} 41. Rxf8+ {[%emt 0:03:00]} Bxf8 {[%emt 0:01:58]} 42. Qc8 {[%emt 0:05:30]} Qd2+ {[%emt 0:00:30]} 43. Kh3 {[%emt 0:01:30]} Qxg5 {[%emt 0:00:30]} 44. Qxe8 {[%emt 0:01:30]} Qh6+ {[%emt 0:00:00]} 45. Qh5 {[%emt 0:01:30]} Qe3 {[%emt 0:01:00]} 46. Qf3 {[%emt 0:03:34]} Qh6+ {[%emt 0:00:30]} 47. Nh5 {[%emt 0:02:34]} Be7 {[%emt 0:00:00]} 48. Qg4 {[%emt 0:00:50]} Qe3+ {[%emt 0:01:00]} 49. Nf3 {[%emt 0:00:16]} Bf8 {[%emt 0:00:00]} 50. Qf5 {[%emt 0:01:10]} Qh6 {[%emt 0:00:00]} 51. Qf6+ {[%emt 0:01:15]} Qxf6 {[%emt 0:01:30]} 52. Nxf6 {[%emt 0:00:01]} 1-0

[Event "World Junior U20 Girls 2018"]
[Site "Gebze"]
[Date "2018.09.07"]
[Round "3"]
[White "Nurgali, Nazerke"]
[Black "Diakonova, Ekaterina"]
[Result "1-0"]
[ECO "A50"]
[WhiteElo "2080"]
[BlackElo "2243"]
[Annotator "NA"]
[PlyCount "133"]
[EventDate "2018.09.05"]
[EventType "swiss"]
[EventCountry "TUR"]
[SourceTitle "playchess.com"]
[Source "ChessBase"]
[SourceQuality "1"]
[TimeControl "40/5400+30:1800+30"]

1. d4 {[%emt 0:00:30]} Nf6 {[%emt 0:00:30]} 2. c4 {[%emt 0:00:30]} b6 {[%emt 0:00:00]} 3. f3 {[%emt 0:00:00]} e6 {[%emt 0:00:00]} 4. e4 {[%emt 0:01:00] A50: Queen's Fianchetto Defence (1 d4 Nf6 2 c4 b6)} Bb4+ {[%emt 0:00:30]} (4... Bb7 5. Nc3 d5 6. cxd5 exd5 7. e5 Nfd7 8. f4 c5 9. Nf3 Be7 10. Be3 O-O 11. Be2 Nc6 12. Nxd5 cxd4 13. Bxd4 Nxd4 14. Nxe7+ Qxe7 15. Qxd4 {½-½ (49) Wojtaszek,R (2736)-Delgado Ramirez,N (2618) Baku 2016}) 5. Bd2 {[%emt 0:00:30]} Bxd2+ {[%emt 0:01:30]} 6. Qxd2 {[%emt 0:00:30]} O-O {[%emt 0:01:30]} 7. Nc3 {[%emt 0:01:30]} Bb7 {[%emt 0:09:30]} 8. Bd3 $146 {[%emt 0:04:30]} ({Predecessor:} 8. O-O-O d6 9. g4 Nc6 10. Nge2 Na5 11. Ng3 {1-0 (36) Rowson,J (2565)-Sowray,P (2348) London 2016}) 8... d5 {[%emt 0:03:30]} 9. cxd5 {[%emt 0:11:30]} exd5 {[%emt 0:00:00]} 10. e5 {[%emt 0:01:30]} Nfd7 {[%emt 0:05:00]} 11. Nge2 {[%emt 0:05:30]} c5 {[%emt 0:01:30]} 12. f4 {[%emt 0:01:30]} a6 {[%emt 0:13:30]} 13. O-O {[%emt 0:02:30]} Nc6 {[%emt 0:13:30]} 14. Bc2 {[%emt 0:02:30]} Rc8 {[%emt 0:15:30]} 15. Rad1 {[%emt 0:09:30]} Nxd4 {[%emt 0:03:30]} 16. Nxd4 {[%emt 0:00:30]} cxd4 {[%emt 0:00:00]} 17. Qxd4 {[%emt 0:00:30]} Rc4 {[%emt 0:03:00]} 18. Qd3 {[%emt 0:02:30]} g6 {[%emt 0:00:30]} 19. Bb3 {[%emt 0:00:30]} Nc5 {[%emt 0:00:00]} 20. Qd2 {[%emt 0:15:30]} Nxb3 {[%emt 0:01:00]} 21. axb3 {[%emt 0:00:00]} Rc8 {[%emt 0:02:30]} 22. f5 {[%emt 0:05:00]} Qc7 {[%emt 0:04:37]} 23. f6 {[%emt 0:01:30]} Qc5+ {[%emt 0:01:25]} 24. Kh1 {[%emt 0:01:30]} Rfe8 {[%emt 0:02:35]} 25. Qh6 {[%emt 0:00:30]} Qf8 {[%emt 0:00:02]} 26. Qg5 {[%emt 0:01:30]} Rcd8 {[%emt 0:02:47]} 27. Rd4 {[%emt 0:02:30]} h6 {[%emt 0:01:23]} 28. Qf4 {[%emt 0:02:30]} Kh7 {[%emt 0:01:17]} 29. Rf3 {[%emt 0:00:30]} Re6 {[%emt 0:02:23]} 30. Re3 {[%emt 0:02:30]} Qg8 {[%emt 0:02:37]} 31. Qg3 {[%emt 0:07:22]} g5 {[%emt 0:00:44]} 32. h4 {[%emt 0:02:44]} gxh4 {[%emt 0:01:43]} 33. Qh3 {[%emt 0:00:19]} Bc8 {[%emt 0:02:19]} 34. Rg4 {[%emt 0:02:24]} Ree8 {[%emt 0:04:49]} 35. Rxg8 {[%emt 0:00:41]} Rxg8 {[%emt 0:00:04]} 36. Qxh4 {[%emt 0:01:06]} d4 {[%emt 0:00:01]} 37. Qe4+ {[%emt 0:00:19]} Kh8 {[%emt 0:00:25]} 38. Rd3 {[%emt 0:04:27]} dxc3 {[%emt 0:00:02]} 39. Rxd8 {[%emt 0:00:00]} Rxd8 {[%emt 0:00:30]} 40. bxc3 {[%emt 0:00:00]} Rg8 {[%emt 0:00:00]} 41. Qe3 {[%emt 0:01:08]} Kh7 {[%emt 0:05:17]} 42. Qxb6 {[%emt 0:00:30]} Rg3 {[%emt 0:01:30]} 43. c4 {[%emt 0:01:30]} Be6 {[%emt 0:00:30]} 44. Kh2 {[%emt 0:00:30]} Rd3 {[%emt 0:01:30]} 45. Qb7 {[%emt 0:00:30]} Re3 {[%emt 0:00:30]} 46. Qb8 {[%emt 0:02:30]} Kg6 {[%emt 0:05:30]} 47. Qb6 {[%emt 0:07:30]} Rc3 {[%emt 0:04:45]} 48. Qf2 {[%emt 0:04:30]} Rd3 {[%emt 0:05:29]} 49. Qe2 {[%emt 0:00:30]} Rd4 {[%emt 0:01:54]} 50. Qe3 {[%emt 0:01:30]} Rd8 {[%emt 0:00:42]} 51. Qe4+ {[%emt 0:02:30]} Bf5 {[%emt 0:00:28]} 52. Qf4 {[%emt 0:02:30]} h5 {[%emt 0:03:34]} 53. Kg3 {[%emt 0:01:55]} Rd1 {[%emt 0:00:01]} 54. c5 {[%emt 0:02:36]} Re1 {[%emt 0:00:51]} 55. Qd4 {[%emt 0:05:52]} Rc1 {[%emt 0:02:35]} 56. b4 {[%emt 0:00:38]} Be6 {[%emt 0:01:24]} 57. Qd3+ {[%emt 0:00:17]} Bf5 {[%emt 0:00:10]} 58. Qxa6 {[%emt 0:00:27]} Kg5 {[%emt 0:01:49]} 59. Qa3 {[%emt 0:01:53]} h4+ {[%emt 0:00:12]} 60. Kh2 $18 {[%emt 0:00:04]} Re1 {[%emt 0:02:17]} 61. Qc3 {[%emt 0:00:30]} Re2 {[%emt 0:00:00]} 62. Qc4 {[%emt 0:01:07]} Rc2 {[%emt 0:00:00]} 63. Qxf7 {[%emt 0:00:32]} h3 {[%emt 0:00:00]} 64. Qg7+ {[%emt 0:00:07]} Kf4 {[%emt 0:01:12]} 65. Qg3+ {[%emt 0:00:47]} Ke4 {[%emt 0:00:02]} 66. f7 {[%emt 0:00:13]} Rxg2+ {[%emt 0:01:21]} 67. Qxg2+ {[%emt 0:00:05]} 1-0

[Event "World Junior U20 Girls 2018"]
[Site "Gebze"]
[Date "2018.09.07"]
[Round "3"]
[White "Bai, Xue"]
[Black "Zairbek kyzy, Begimay"]
[Result "1-0"]
[ECO "B11"]
[WhiteElo "2073"]
[BlackElo "1770"]
[Annotator "NA"]
[PlyCount "99"]
[EventDate "2018.09.05"]
[EventType "swiss"]
[EventCountry "TUR"]
[SourceTitle "playchess.com"]
[Source "ChessBase"]
[SourceQuality "1"]
[TimeControl "40/5400+30:1800+30"]

1. e4 c6 2. Nc3 d5 3. Nf3 Bg4 4. h3 Bh5 5. exd5 cxd5 6. g4 Bg6 7. d4 Nc6 8. Ne5 a6 $14 ({Better is} 8... e6 $11) 9. Nxc6 bxc6 10. Bf4 e6 11. Na4 Be7 12. Be2 Nf6 13. Be5 {[%emt 0:29:30]} Qa5+ {[%emt 0:20:30]} 14. c3 {[%emt 0:00:30]} Kf8 {[%emt 0:07:30]} 15. b4 {[%emt 0:10:30]} Qd8 {[%emt 0:01:30]} 16. Nc5 {[%emt 0:00:30]} Bxc5 {[%emt 0:02:30]} 17. dxc5 {[%emt 0:16:30]} Ne4 {[%emt 0:00:30]} 18. O-O {[%emt 0:13:30]} h5 {[%emt 0:05:30]} 19. Qd4 {[%emt 0:02:30]} Rh7 {[%emt 0:04:30]} 20. Kg2 {[%emt 0:06:30]} Qg5 {[%emt 0:13:30]} 21. Rh1 {[%emt 0:04:04]} Qd8 {[%emt 0:07:30]} 22. f3 {[%emt 0:02:15]} Nf6 {[%emt 0:08:30]} 23. c4 {[%emt 0:04:07]} Nd7 {[%emt 0:00:30]} 24. cxd5 {[%emt 0:00:13]} Nxe5 {[%emt 0:02:30]} 25. Qxe5 {[%emt 0:00:30]} Qxd5 {[%emt 0:00:30]} 26. Qxd5 {[%emt 0:00:30]} exd5 {[%emt 0:00:30]} 27. Rhe1 {[%emt 0:00:30]} Bc2 {[%emt 0:00:30]} 28. a4 {[%emt 0:00:30]} hxg4 {[%emt 0:00:30]} 29. hxg4 {[%emt 0:00:30]} Rh6 {[%emt 0:00:30]} 30. b5 {[%emt 0:03:40]} axb5 {[%emt 0:10:01]} 31. axb5 {[%emt 0:00:03]} Rxa1 {[%emt 0:00:35]} 32. Rxa1 {[%emt 0:00:30]} cxb5 {[%emt 0:00:00]} 33. Rc1 {[%emt 0:00:46]} Bb3 {[%emt 0:01:03]} 34. Bxb5 {[%emt 0:00:08]} Bc4 {[%emt 0:00:15]} 35. Bxc4 {[%emt 0:02:20]} dxc4 {[%emt 0:00:30]} 36. Rxc4 {[%emt 0:00:00]} Rc6 {[%emt 0:00:00]} 37. f4 {[%emt 0:01:42]} Ke7 {[%emt 0:00:18]} 38. Kf3 {[%emt 0:00:03]} Kd7 {[%emt 0:00:33]} 39. Ke4 {[%emt 0:00:10]} Rg6 {[%emt 0:00:18]} 40. Kd5 {[%emt 0:00:00]} Rxg4 {[%emt 0:00:00]} 41. c6+ {[%emt 0:03:59]} Kc7 {[%emt 0:09:27]} 42. Ra4 {[%emt 0:00:00]} g5 {[%emt 0:01:30]} 43. Ra7+ {[%emt 0:00:00]} Kb8 {[%emt 0:00:30]} 44. c7+ {[%emt 0:01:30]} Kxa7 {[%emt 0:00:30]} 45. c8=Q {[%emt 0:00:30]} Rxf4 {[%emt 0:00:30]} 46. Kc5 {[%emt 0:00:30]} f6 {[%emt 0:00:30]} 47. Kb5 {[%emt 0:00:30]} Rf1 {[%emt 0:01:30]} 48. Qc2 {[%emt 0:01:30]} Rf4 {[%emt 0:01:30]} 49. Kc6 {[%emt 0:00:30]} Rh4 {[%emt 0:01:30]} 50. Qc5+ {[%emt 0:00:30]} 1-0

[Event "World Junior U20 Girls 2018"]
[Site "Gebze"]
[Date "2018.09.07"]
[Round "3"]
[White "Li, Yunshan"]
[Black "Gur, Tuba"]
[Result "1-0"]
[ECO "E08"]
[WhiteElo "2060"]
[BlackElo "1724"]
[Annotator "NA"]
[PlyCount "53"]
[EventDate "2018.09.05"]
[EventType "swiss"]
[EventCountry "TUR"]
[SourceTitle "playchess.com"]
[Source "ChessBase"]
[SourceQuality "1"]
[TimeControl "40/5400+30:1800+30"]

1. d4 {[%emt 0:00:30]} d5 {[%emt 0:00:30]} 2. c4 {[%emt 0:00:30]} e6 {[%emt 0:00:00]} 3. Nf3 {[%emt 0:00:00]} Nf6 {[%emt 0:00:00]} 4. g3 {[%emt 0:00:00]} Be7 {[%emt 0:01:30]} 5. Bg2 {[%emt 0:00:00]} O-O {[%emt 0:00:30]} 6. Qc2 {[%emt 0:00:00]} c5 {[%emt 0:13:30]} 7. O-O {[%emt 0:00:30]} Nbd7 {[%emt 0:04:30]} 8. b3 {[%emt 0:11:30]} cxd4 {[%emt 0:08:30]} 9. Nxd4 {[%emt 0:00:30]} Bc5 {[%emt 0:30:30]} 10. Nf3 $11 {[%emt 0:29:00]} Qe7 {[%emt 0:07:30]} 11. Bb2 {[%emt 0:03:30]} e5 {[%emt 0:16:30]} 12. cxd5 {[%emt 0:02:30]} Nxd5 {[%emt 0:00:30]} 13. Nbd2 {[%emt 0:00:30]} Nb4 {[%emt 0:06:30]} 14. Qb1 {[%emt 0:02:30]} Nc6 {[%emt 0:03:30]} 15. Ne4 {[%emt 0:04:30]} Bb6 {[%emt 0:02:30]} 16. Nfd2 {[%emt 0:02:30]} a6 {[%emt 0:04:30]} 17. Nc4 {[%emt 0:01:30]} Bc7 {[%emt 0:00:30]} 18. Ba3 {[%emt 0:03:30]} Nb4 {[%emt 0:02:30]} 19. Qe1 {[%emt 0:08:30]} a5 {[%emt 0:00:30]} 20. Nc3 {[%emt 0:00:30]} Qg5 {[%emt 0:02:30]} 21. Bxb4 {[%emt 0:01:30]} axb4 {[%emt 0:00:00]} 22. Nd5 {[%emt 0:00:30]} Ba5 {[%emt 0:03:48]} 23. Nxa5 {[%emt 0:00:30]} Rxa5 {[%emt 0:00:05]} 24. Qxb4 {[%emt 0:00:00]} Ra6 {[%emt 0:01:37]} 25. Ne7+ {[%emt 0:01:00]} Kh8 {[%emt 0:00:30]} 26. Nxc8 {[%emt 0:00:00]} Rxc8 {[%emt 0:00:50]} 27. Qxb7 {[%emt 0:00:00]} 1-0

[Event "World Junior U20 Girls 2018"]
[Site "Gebze"]
[Date "2018.09.07"]
[Round "3"]
[White "Celik, Eylul"]
[Black "Nass, Sara"]
[Result "1-0"]
[ECO "D02"]
[WhiteElo "2014"]
[BlackElo "1888"]
[Annotator "NA"]
[PlyCount "53"]
[EventDate "2018.09.05"]
[EventType "swiss"]
[EventCountry "TUR"]
[SourceTitle "playchess.com"]
[Source "ChessBase"]
[SourceQuality "1"]
[TimeControl "40/5400+30:1800+30"]

1. d4 {[%emt 0:00:30]} d5 {[%emt 0:01:30]} 2. Bf4 {[%emt 0:01:30]} Nf6 {[%emt 0:00:30]} 3. e3 {[%emt 0:00:30]} e6 {[%emt 0:00:00]} 4. c3 {[%emt 0:00:30]} c5 {[%emt 0:00:00]} 5. Nd2 {[%emt 0:00:30]} Nc6 {[%emt 0:00:30]} 6. Bd3 {[%emt 0:00:30]} Bd6 {[%emt 0:03:30]} 7. Bg3 {[%emt 0:02:30]} O-O {[%emt 0:05:30]} 8. Ngf3 {[%emt 0:02:30]} Re8 {[%emt 0:02:30]} 9. Ne5 $11 {[%emt 0:05:30]} Bxe5 10. dxe5 Nd7 11. Nf3 {[%emt 0:22:30]} f6 {[%emt 1:35:30]} 12. exf6 {[%emt 1:13:30]} Nxf6 {[%emt 0:00:00]} 13. Ne5 {[%emt 0:00:00]} Nxe5 {[%emt 0:00:00]} 14. Bxe5 {[%emt 0:00:00]} Rf8 {[%emt 0:00:00]} 15. Qc2 {[%emt 0:00:00]} h6 {[%emt 0:00:00]} 16. O-O {[%emt 0:00:00]} c4 {[%emt 0:00:00]} 17. Bg6 {[%emt 0:00:00]} Qe7 {[%emt 0:00:00]} 18. Rad1 {[%emt 0:00:00]} Bd7 {[%emt 0:00:00]} 19. e4 {[%emt 0:00:00]} Nxe4 {[%emt 0:00:00]} 20. Bxe4 {[%emt 0:00:00]} dxe4 {[%emt 0:00:00]} 21. Bd6 {[%emt 0:00:00]} Qf7 {[%emt 0:00:00]} 22. Bxf8 {[%emt 0:00:00]} Rxf8 {[%emt 0:00:00]} 23. Qe2 {[%emt 0:00:00]} Bc6 {[%emt 0:00:00]} 24. Qxc4 {[%emt 0:00:00]} Qg6 {[%emt 0:00:00]} 25. Rd6 {[%emt 0:00:00]} Rf6 {[%emt 0:00:00]} 26. Qe2 {[%emt 0:00:00]} e3 {[%emt 0:00:00]} 27. fxe3 {[%emt 0:00:00]} 1-0

[Event "World Junior U20 Girls 2018"]
[Site "Gebze"]
[Date "2018.09.07"]
[Round "3"]
[White "Kamalidenova, Meruert"]
[Black "Caglar, Sila"]
[Result "1-0"]
[ECO "E61"]
[WhiteElo "2011"]
[BlackElo "2208"]
[Annotator "NA"]
[PlyCount "106"]
[EventDate "2018.09.05"]
[EventType "swiss"]
[EventCountry "TUR"]
[SourceTitle "playchess.com"]
[Source "ChessBase"]
[SourceQuality "1"]
[TimeControl "40/5400+30:1800+30"]

1. d4 {[%emt 0:00:30]} Nf6 {[%emt 0:00:30]} 2. Nf3 {[%emt 0:00:30]} g6 {[%emt 0:00:30]} 3. c4 {[%emt 0:00:30]} Bg7 {[%emt 0:00:00]} 4. Nc3 {[%emt 0:00:00]} O-O {[%emt 0:00:00] LiveBook: 11908 Games} 5. Bg5 {[%emt 0:00:00]} d6 {[%emt 0:00:30]} 6. e3 {[%emt 0:00:30]} b6 {[%emt 0:08:30]} 7. Be2 {[%emt 0:02:30] E61: King's Indian: Early deviations for White, including Smyslov System} Bb7 {[%emt 0:00:30]} 8. Qc2 {[%emt 0:02:30]} c5 {[%emt 0:03:30]} (8... Nbd7 9. Rd1 c6 10. O-O Re8 11. Nd2 h6 12. Bh4 a6 13. f4 d5 14. e4 dxe4 15. Ndxe4 Nxe4 16. Nxe4 {1-0 (37) Keosidi,K (2404)-Tikhomirov,A (2278) Krasnoyarsk 2015}) 9. d5 {[%emt 0:01:30]} Na6 {[%emt 0:05:30]} 10. O-O {[%emt 0:03:30]} Nc7 {[%emt 0:06:30]} 11. e4 {[%emt 0:16:30]} Nd7 $146 {[%emt 0:36:30]} ({Predecessor:} 11... e6 12. Nd2 exd5 13. cxd5 Qd7 14. Rad1 b5 {½-½ (32) Bless,A-Scholz,C (2235) Germany 1996}) 12. Rad1 {[%emt 0:03:30]} a6 {[%emt 0:12:30]} 13. a4 {[%emt 0:04:30]} Rb8 {[%emt 0:05:30]} 14. Kh1 {[%emt 0:01:30]} Bc8 {[%emt 0:04:30]} 15. Ne1 {[%emt 0:03:30]} f5 {[%emt 0:10:30]} 16. exf5 {[%emt 0:04:30]} Rxf5 {[%emt 0:00:30]} 17. f4 {[%emt 0:00:30]} Nf8 {[%emt 0:00:30]} 18. Bd3 {[%emt 0:06:30]} Rf7 {[%emt 0:01:30]} 19. f5 {[%emt 0:02:30]} gxf5 {[%emt 0:06:30]} 20. Bxf5 {[%emt 0:00:00]} Bxf5 {[%emt 0:00:30]} 21. Rxf5 {[%emt 0:00:00]} Rxf5 {[%emt 0:00:30]} 22. Qxf5 $11 {[%emt 0:00:30]} Ng6 {[%emt 0:01:30]} 23. Nd3 {[%emt 0:04:30]} Qf8 {[%emt 0:00:30]} 24. Qe4 {[%emt 0:05:30]} Qf7 {[%emt 0:09:24]} 25. Ne2 {[%emt 0:02:30]} Rf8 {[%emt 0:02:35]} 26. Ng3 {[%emt 0:03:30]} b5 {[%emt 0:02:25]} 27. axb5 {[%emt 0:02:30]} axb5 {[%emt 0:00:06]} 28. b3 {[%emt 0:00:30]} b4 {[%emt 0:00:44]} 29. h3 {[%emt 0:03:30]} Ne5 {[%emt 0:01:56]} 30. Nc1 {[%emt 0:06:30]} Ne8 {[%emt 0:03:03]} 31. Nce2 {[%emt 0:01:30]} Nf6 {[%emt 0:01:51]} 32. Bxf6 {[%emt 0:04:30]} Qxf6 {[%emt 0:00:55]} 33. Rf1 {[%emt 0:02:30]} Qg5 {[%emt 0:00:35]} 34. Nf5 {[%emt 0:02:30]} Rf7 {[%emt 0:00:47]} 35. g4 {[%emt 0:06:02]} Qd2 {[%emt 0:01:00]} 36. Nf4 {[%emt 0:07:17]} Qc3 {[%emt 0:00:34]} 37. Qb1 {[%emt 0:00:58]} Ng6 {[%emt 0:00:27]} 38. Nd3 {[%emt 0:01:19]} Qd2 {[%emt 0:00:35]} 39. Rf2 {[%emt 0:01:27]} Qc3 {[%emt 0:00:25]} 40. Kg2 {[%emt 0:00:00]} Rf8 {[%emt 0:00:00]} 41. Nf4 {[%emt 0:11:27]} Nxf4+ {[%emt 0:19:33]} 42. Rxf4 {[%emt 0:00:30]} Ra8 {[%emt 0:00:57]} 43. Rf2 {[%emt 0:05:30]} Qe5 {[%emt 0:07:01]} 44. Qd3 {[%emt 0:02:30]} Ra7 {[%emt 0:01:07]} 45. Re2 {[%emt 0:01:59]} Qc3 {[%emt 0:00:38]} 46. Qe4 {[%emt 0:01:29]} Qe5 {[%emt 0:00:47]} 47. Qf3 {[%emt 0:00:51]} Qf6 {[%emt 0:00:59]} 48. Qf2 {[%emt 0:02:01]} Bf8 {[%emt 0:01:49]} 49. Qe3 {[%emt 0:02:58]} Kh8 {[%emt 0:02:15]} 50. Rf2 {[%emt 0:00:51]} Bg7 {[%emt 0:00:30]} 51. Ng3 {[%emt 0:02:30]} Qe5 {[%emt 0:00:23]} 52. Qf3 {[%emt 0:00:54]} Ra8 {[%emt 0:00:34]} 53. Nh5 {[%emt 0:01:25]} Qg5 {[%emt 0:01:05]} 1-0

[Event "World Junior U20 Girls 2018"]
[Site "Gebze"]
[Date "2018.09.07"]
[Round "3"]
[White "Hu, Yu A"]
[Black "Kubicka, Anna"]
[Result "1-0"]
[ECO "B07"]
[WhiteElo "2009"]
[BlackElo "2204"]
[Annotator "NA"]
[PlyCount "79"]
[EventDate "2018.09.05"]
[EventType "swiss"]
[EventCountry "TUR"]
[SourceTitle "playchess.com"]
[Source "ChessBase"]
[SourceQuality "1"]
[TimeControl "40/5400+30:1800+30"]

1. e4 d6 2. d4 Nf6 3. Nc3 e5 4. dxe5 dxe5 5. Qxd8+ Kxd8 6. Nf3 Bd6 7. Bc4 Ke7 8. Bg5 $14 c6 9. O-O-O Be6 10. Bxe6 fxe6 11. Rd2 {[%emt 0:34:30]} h6 {[%emt 0:16:30]} 12. Rhd1 {[%emt 0:01:30]} Bc7 {[%emt 0:03:30]} 13. Be3 {[%emt 0:07:30]} b6 {[%emt 0:00:30]} 14. g4 {[%emt 0:10:30]} Na6 {[%emt 0:20:30]} 15. Rg1 {[%emt 0:07:30]} g5 {[%emt 0:18:30]} 16. h4 {[%emt 0:00:30]} gxh4 {[%emt 0:00:30]} 17. Nxh4 {[%emt 0:00:30]} Kf7 {[%emt 0:01:30]} 18. f3 {[%emt 0:00:30]} Rad8 {[%emt 0:01:30]} 19. Rh2 {[%emt 0:00:30]} Bd6 {[%emt 0:03:30]} 20. Rgh1 {[%emt 0:01:30]} Bc5 {[%emt 0:01:30]} 21. Bd2 {[%emt 0:00:00]} b5 {[%emt 0:08:30]} 22. Ng2 {[%emt 0:04:00]} Ng8 {[%emt 0:01:30]} 23. g5 {[%emt 0:04:30]} h5 {[%emt 0:00:30]} 24. Rxh5 {[%emt 0:00:30]} Rxh5 {[%emt 0:00:30]} 25. Rxh5 {[%emt 0:00:00]} Kg6 {[%emt 0:00:00]} 26. Rh1 {[%emt 0:00:00]} Nc7 {[%emt 0:02:00]} 27. f4 {[%emt 0:07:30]} exf4 {[%emt 0:00:30]} 28. Nxf4+ {[%emt 0:00:30]} Kg7 {[%emt 0:00:00]} 29. g6 {[%emt 0:03:02]} Nf6 {[%emt 0:10:07]} 30. e5 {[%emt 0:00:20]} Nfe8 {[%emt 0:00:35]} 31. Rh7+ {[%emt 0:01:12]} Kg8 {[%emt 0:00:04]} 32. Ne4 {[%emt 0:00:01]} Bd4 {[%emt 0:01:50]} 33. Nf6+ {[%emt 0:00:10]} Nxf6 {[%emt 0:00:07]} 34. exf6 {[%emt 0:00:15]} Bxf6 {[%emt 0:00:38]} 35. Rxc7 {[%emt 0:00:30]} Rxd2 {[%emt 0:00:47]} 36. Kxd2 {[%emt 0:00:30]} Bg5 {[%emt 0:00:00]} 37. Ke3 {[%emt 0:00:30]} e5 {[%emt 0:00:00]} 38. Ke4 {[%emt 0:00:48]} exf4 {[%emt 0:00:16]} 39. Rxa7 {[%emt 0:00:29]} Bf6 {[%emt 0:01:50]} 40. c3 {[%emt 0:00:00]} 1-0